fUSD/lending_fUSD_20241209
["ID","MTS","AMOUNT","RATE_DAILY","PERIOD"]
[344704114,1733727071203,-3198.49,9.863e-05,2]
[344704115,1733727071212,-500.0,9.863e-05,2]
[344704116,1733727071222,-500.0,9.863e-05,2]
[344704117,1733727071231,-3198.49,9.863e-05,2]
[344704118,1733727071242,-500.0,9.863e-05,2]
[344704119,1733727071251,-500.0,9.863e-05,2]
[344704120,1733727071262,-500.0,9.863e-05,2]
[344704121,1733727071272,-3198.49,9.863e-05,2]
[344704122,1733727071282,-3198.49,9.863e-05,2]
[344704123,1733727071291,-500.0,9.863e-05,2]
[344704124,1733727071301,-435.84501685,9.863e-05,2]
[344704125,1733727071310,-500.0,9.863e-05,2]
[344704126,1733727071320,-3198.49,9.863e-05,2]
[344704127,1733727071330,-500.0,9.863e-05,2]
[344704128,1733727071340,-3198.49,9.863e-05,2]
[344704129,1733727071350,-3198.49,9.863e-05,2]
[344704130,1733727071360,-3198.49,9.863e-05,2]
[344704131,1733727071370,-3198.49,9.863e-05,2]
[344704132,1733727071380,-500.0,9.863e-05,2]
[344704133,1733727071390,-500.0,9.863e-05,2]
[344704134,1733727071400,-500.0,9.863e-05,2]
[344704135,1733727071410,-500.0,9.863e-05,2]
[344704136,1733727071420,-500.0,9.863e-05,2]
[344704137,1733727071430,-500.0,9.863e-05,2]
[344704138,1733727071439,-500.0,9.863e-05,2]
[344704139,1733727071450,-500.0,9.863e-05,2]
[344704140,1733727071459,-500.0,9.863e-05,2]
[344704141,1733727071469,-500.0,9.863e-05,2]
[344704142,1733727071478,-500.0,9.863e-05,2]
[344704143,1733727071488,-500.0,9.863e-05,2]
[344704144,1733727071497,-500.0,9.863e-05,2]
[344704145,1733727071507,-500.0,9.863e-05,2]
[344704146,1733727071518,-500.0,9.863e-05,2]
[344704147,1733727071528,-500.0,9.863e-05,2]
[344704148,1733727071538,-500.0,9.863e-05,2]
[344704149,1733727071548,-500.0,9.863e-05,2]
[344704150,1733727071558,-500.0,9.863e-05,2]
[344704151,1733727071568,-500.0,9.863e-05,2]
[344704152,1733727071577,-500.0,9.863e-05,2]
[344704153,1733727071587,-500.0,9.863e-05,2]
[344704154,1733727071597,-500.0,9.863e-05,2]
[344704155,1733727071607,-500.0,9.863e-05,2]
[344704156,1733727071616,-500.0,9.863e-05,2]
[344704157,1733727071626,-500.0,9.863e-05,2]
[344704158,1733727071635,-500.0,9.863e-05,2]
[344704159,1733727071645,-500.0,9.863e-05,2]
[344704160,1733727071655,-500.0,9.863e-05,2]
[344704161,1733727071665,-500.0,9.863e-05,2]
[344704162,1733727071674,-500.0,9.863e-05,2]
[344704163,1733727071684,-500.0,9.863e-05,2]
[344704164,1733727071694,-500.0,9.863e-05,2]
[344704165,1733727071704,-500.0,9.863e-05,2]
[344704166,1733727071714,-500.0,9.863e-05,2]
[344704167,1733727071723,-500.0,9.863e-05,2]
[344704168,1733727071734,-500.0,9.863e-05,2]
[344704169,1733727071743,-500.0,9.863e-05,2]
[344704170,1733727071753,-500.0,9.863e-05,2]
[344704171,1733727071763,-500.0,9.863e-05,2]
[344704172,1733727071773,-500.0,9.863e-05,2]
[344704173,1733727071783,-500.0,9.863e-05,2]
[344704174,1733727071792,-500.0,9.863e-05,2]
[344704175,1733727071803,-500.0,9.863e-05,2]
[344704176,1733727071813,-500.0,9.863e-05,2]
[344704177,1733727071823,-500.0,9.863e-05,2]
[344704178,1733727071833,-500.0,9.863e-05,2]
[344704179,1733727071842,-500.0,9.863e-05,2]
[344704180,1733727071855,-500.0,9.863e-05,2]
[344704181,1733727071865,-270.02,9.863e-05,2]
[344704182,1733727071875,-500.0,9.863e-05,2]
[344704183,1733727071884,-500.0,9.863e-05,2]
[344704184,1733727071893,-500.0,9.863e-05,2]
[344704185,1733727071902,-500.0,9.863e-05,2]
[344704186,1733727071912,-500.0,9.863e-05,2]
[344704187,1733727071922,-500.0,9.863e-05,2]
[344704188,1733727071931,-500.0,9.863e-05,2]
[344704189,1733727071942,-500.0,9.863e-05,2]
[344704190,1733727071951,-500.0,9.863e-05,2]
[344704191,1733727071961,-500.0,9.863e-05,2]
[344704192,1733727071971,-500.0,9.863e-05,2]
[344704193,1733727071981,-500.0,9.863e-05,2]
[344704194,1733727071991,-500.0,9.863e-05,2]
[344704195,1733727072000,-500.0,9.863e-05,2]
[344704196,1733727072010,-500.0,9.863e-05,2]
[344704197,1733727072019,-2021.5,9.863e-05,2]
[344704198,1733727072030,-500.0,9.863e-05,2]
[344704199,1733727072039,-2021.5,9.863e-05,2]
[344704200,1733727072049,-500.0,9.863e-05,2]
[344704201,1733727072059,-500.0,9.863e-05,2]
[344704202,1733727072069,-2021.5,9.863e-05,2]
[344704203,1733727072079,-14745.82,9.863e-05,2]
[344704204,1733727072090,-2021.5,9.863e-05,2]
[344704205,1733727072100,-14745.82,9.863e-05,2]
[344704206,1733727072110,-2021.5,9.863e-05,2]
[344704207,1733727072120,-2021.5,9.863e-05,2]
[344704208,1733727072130,-14745.82,9.863e-05,2]
[344704209,1733727072140,-2021.5,9.863e-05,2]
[344704210,1733727072149,-14745.82,9.863e-05,2]
[344704211,1733727072159,-2021.5,9.863e-05,2]
[344704212,1733727072169,-14745.82,9.863e-05,2]
[344704213,1733727072178,-2021.5,9.863e-05,2]
[344704214,1733727072188,-14745.82,9.863e-05,2]
[344704215,1733727072197,-2021.5,9.863e-05,2]
[344704216,1733727072208,-500.0,9.863e-05,2]
[344704217,1733727072218,-14745.82,9.863e-05,2]
[344704218,1733727072227,-500.0,9.863e-05,2]
[344704219,1733727072238,-14745.82,9.863e-05,2]
[344704220,1733727072247,-500.0,9.863e-05,2]
[344704221,1733727072257,-14745.82,9.863e-05,2]
[344704222,1733727072269,-355.00010855,9.863e-05,2]
[344704223,1733727072280,-14745.82,9.863e-05,2]
[344704224,1733727072290,-500.0,9.863e-05,2]
[344704225,1733727072300,-500.0,9.863e-05,2]
[344704226,1733727072310,-500.0,9.863e-05,2]
[344704227,1733727072320,-500.0,9.863e-05,2]
[344704228,1733727072329,-500.0,9.863e-05,2]
[344704229,1733727072339,-9054.83,9.863e-05,2]
[344704230,1733727072349,-500.0,9.863e-05,2]
[344704231,1733727072361,-500.0,9.863e-05,2]
[344704232,1733727072371,-9054.83,9.863e-05,2]
[344704233,1733727072380,-500.0,9.863e-05,2]
[344704234,1733727072390,-500.0,9.863e-05,2]
[344704235,1733727072399,-500.0,9.863e-05,2]
[344704236,1733727072409,-9054.83,9.863e-05,2]
[344704237,1733727072435,-500.0,9.863e-05,2]
[344704238,1733727072710,-500.0,9.863e-05,2]
[344704239,1733727072730,-500.0,9.863e-05,2]
[344704240,1733727072740,-9054.83,9.863e-05,2]
[344704241,1733727072750,-500.0,9.863e-05,2]
[344704242,1733727072759,-500.0,9.863e-05,2]
[344704243,1733727072770,-500.0,9.863e-05,2]
[344704244,1733727072780,-500.0,9.863e-05,2]
[344704245,1733727072790,-9054.83,9.863e-05,2]
[344704246,1733727072799,-500.0,9.863e-05,2]
[344704247,1733727072808,-500.0,9.863e-05,2]
[344704248,1733727072818,-163.41555956,9.863e-05,2]
[344704249,1733727072828,-504.23220242,9.863e-05,2]
[344704250,1733727072837,-9054.83,9.863e-05,2]
[344704251,1733727072849,-500.0,9.863e-05,2]
[344704252,1733727072858,-500.0,9.863e-05,2]
[344704253,1733727072868,-9054.83,9.863e-05,2]
[344704254,1733727072878,-500.0,9.863e-05,2]
[344704255,1733727072888,-9054.83,9.863e-05,2]
[344704256,1733727072898,-500.0,9.863e-05,2]
[344704257,1733727072908,-500.0,9.863e-05,2]
[344704258,1733727072918,-9054.83,9.863e-05,2]
[344704259,1733727072928,-500.0,9.863e-05,2]
[344704260,1733727072938,-500.0,9.863e-05,2]
[344704261,1733727072948,-9054.83,9.863e-05,2]
[344704262,1733727072957,-500.0,9.863e-05,2]
[344704263,1733727072967,-500.0,9.863e-05,2]
[344704264,1733727072977,-500.0,9.863e-05,2]
[344704265,1733727072986,-500.0,9.863e-05,2]
[344704266,1733727072995,-500.0,9.863e-05,2]
[344704267,1733727073005,-500.0,9.863e-05,2]
[344704268,1733727073016,-500.0,9.863e-05,2]
[344704269,1733727073026,-161.92,9.863e-05,2]
[344704270,1733727073035,-500.0,9.863e-05,2]
[344704271,1733727073045,-500.0,9.863e-05,2]
[344704272,1733727073054,-409.42,9.863e-05,2]
[344704273,1733727073063,-500.0,9.863e-05,2]
[344704274,1733727073073,-1343.94,9.863e-05,2]
[344704275,1733727073082,-1343.94,9.863e-05,2]
[344704276,1733727073091,-500.0,9.863e-05,2]
[344704277,1733727073101,-500.0,9.863e-05,2]
[344704278,1733727073111,-500.0,9.863e-05,2]
[344704279,1733727073120,-1343.94,9.863e-05,2]
[344704280,1733727073129,-500.0,9.863e-05,2]
[344704281,1733727073139,-1343.94,9.863e-05,2]
[344704282,1733727073148,-500.0,9.863e-05,2]
[344704283,1733727073156,-1343.94,9.863e-05,2]
[344704284,1733727073166,-583.72,9.863e-05,2]
[344704285,1733727073175,-500.0,9.863e-05,2]
[344704286,1733727073184,-305.44442633,9.863e-05,2]
[344704287,1733727073193,-583.72,9.863e-05,2]
[344704288,1733727073203,-507.20099931,9.863e-05,2]
[344704289,1733727073212,-1343.94,9.863e-05,2]
[344704290,1733727073221,-500.0,9.863e-05,2]
[344704291,1733727073231,-583.72,9.863e-05,2]
[344704292,1733727073240,-1343.94,9.863e-05,2]
[344704293,1733727073250,-500.0,9.863e-05,2]
[344704294,1733727073259,-500.0,9.863e-05,2]
[344704295,1733727073270,-583.72,9.863e-05,2]
[344704296,1733727073279,-1343.94,9.863e-05,2]
[344704297,1733727073289,-500.0,9.863e-05,2]
[344704298,1733727073299,-500.0,9.863e-05,2]
[344704299,1733727073308,-583.72,9.863e-05,2]
[344704300,1733727073318,-1343.94,9.863e-05,2]
[344704301,1733727073328,-500.0,9.863e-05,2]
[344704302,1733727073337,-583.72,9.863e-05,2]
[344704303,1733727073347,-1343.94,9.863e-05,2]
[344704304,1733727073356,-500.0,9.863e-05,2]
[344704305,1733727073365,-583.72,9.863e-05,2]
[344704306,1733727073375,-500.0,9.863e-05,2]
[344704307,1733727073384,-583.72,9.863e-05,2]
[344704308,1733727073394,-500.0,9.863e-05,2]
[344704309,1733727073403,-625.35,9.863e-05,2]
[344704310,1733727073413,-582.94413056,9.863e-05,2]
[344704311,1733727073422,-583.72,9.863e-05,2]
[344704312,1733727073431,-583.72,9.863e-05,2]
[344704313,1733727073441,-2509.174034,9.9e-05,2]
[344704314,1733727073451,-1000.0,9.9e-05,2]
[344704315,1733727073461,-2500.14675337,9.9e-05,2]
[344704316,1733727073471,-500.0,9.924e-05,2]
[344704317,1733727073483,-500.0,9.924e-05,2]
[344704318,1733727073492,-500.0,9.924e-05,2]
[344704319,1733727073502,-5206.07,9.924e-05,2]
[344704320,1733727073513,-615.53,9.924e-05,2]
[344704321,1733727073523,-500.0,9.924e-05,2]
[344704322,1733727073533,-3902.42,9.924e-05,2]
[344704323,1733727073543,-500.0,9.924e-05,2]
[344704324,1733727073552,-569.722,9.926e-05,2]
[344704325,1733727073562,-1269.324,9.926e-05,2]
[344704326,1733727073573,-636.146,9.926e-05,2]
[344704327,1733727073583,-2005.0,9.926e-05,2]
[344704328,1733727073593,-1904.339,9.926e-05,2]
[344704329,1733727073603,-565.518,9.926e-05,2]
[344704330,1733727073613,-3762.0,9.926e-05,2]
[344704331,1733727073622,-1259.442,9.926e-05,2]
[344704332,1733727073632,-817.0,9.926e-05,2]
[344704333,1733727073642,-985.313,9.926e-05,2]
[344704334,1733727073651,-537.09,9.926e-05,2]
[344704335,1733727073661,-3543.138,9.926e-05,2]
[344704336,1733727073671,-5966.0,9.926e-05,2]
[344704337,1733727073680,-1169.965,9.926e-05,2]
[344704338,1733727073691,-279.232,9.926e-05,2]
[344704339,1733727073700,-13721.0,9.926e-05,2]
[344704340,1733727073710,-150.0,9.926e-05,2]
[344704341,1733727073719,-1102.314,9.926e-05,2]
[344704342,1733727073729,-500.0,9.957e-05,2]
[344704343,1733727073738,-500.0,9.957e-05,2]
[344704344,1733727073747,-500.0,9.957e-05,2]
[344704345,1733727073757,-500.0,9.957e-05,2]
[344704346,1733727073778,-500.0,9.957e-05,2]
[344704347,1733727073787,-412.74,9.957e-05,2]
[344704348,1733727073797,-404.43,9.957e-05,2]
[344704349,1733727073806,-772.19,9.957e-05,2]
[344704350,1733727073816,-500.0,9.957e-05,2]
[344704351,1733727073826,-500.0,9.957e-05,2]
[344704352,1733727073836,-500.0,9.957e-05,2]
[344704353,1733727073847,-500.0,9.957e-05,2]
[344704354,1733727073858,-500.0,9.957e-05,2]
[344704355,1733727073867,-207.67,9.957e-05,2]
[344704356,1733727073877,-500.0,9.957e-05,2]
[344704357,1733727073887,-500.0,9.957e-05,2]
[344704358,1733727073897,-500.0,9.957e-05,2]
[344704359,1733727073907,-500.0,9.957e-05,2]
[344704360,1733727073916,-500.0,9.957e-05,2]
[344704361,1733727073926,-1615.85,9.957e-05,2]
[344704362,1733727073935,-500.0,9.957e-05,2]
[344704363,1733727073945,-627.44,9.957e-05,2]
[344704364,1733727073955,-500.0,9.957e-05,2]
[344704365,1733727073965,-500.0,9.957e-05,2]
[344704366,1733727073975,-500.4,9.957e-05,2]
[344704367,1733727073985,-500.0,9.957e-05,2]
[344704368,1733727073995,-579.47,9.957e-05,2]
[344704369,1733727074005,-7764.25,9.957e-05,2]
[344704370,1733727074017,-1320.76,9.957e-05,2]
[344704371,1733727074027,-980.21,9.957e-05,2]
[344704372,1733727074038,-1680.89,9.957e-05,2]
[344704373,1733727074048,-2748.0,9.957e-05,2]
[344704374,1733727074059,-596.93,9.957e-05,2]
[344704375,1733727074069,-670.49,9.957e-05,2]
[344704376,1733727074079,-1327.67,9.957e-05,2]
[344704377,1733727074089,-500.0,9.957e-05,2]
[344704378,1733727074099,-963.86,9.957e-05,2]
[344704379,1733727074109,-799.04,9.957e-05,2]
[344704380,1733727074119,-500.0,9.957e-05,2]
[344704381,1733727074129,-708.62,9.957e-05,2]
[344704382,1733727074139,-500.0,9.957e-05,2]
[344704383,1733727074149,-500.0,9.957e-05,2]
[344704384,1733727074159,-500.0,9.957e-05,2]
[344704385,1733727074170,-1074.36,9.957e-05,2]
[344704386,1733727074180,-500.0,9.957e-05,2]
[344704387,1733727074190,-500.0,9.957e-05,2]
[344704388,1733727074200,-1083.33,9.957e-05,2]
[344704389,1733727074210,-726.78,9.957e-05,2]
[344704390,1733727074220,-506.09,9.957e-05,2]
[344704391,1733727074230,-500.0,9.957e-05,2]
[344704392,1733727074240,-500.0,9.957e-05,2]
[344704393,1733727074250,-500.0,9.957e-05,2]
[344704394,1733727074260,-500.0,9.957e-05,2]
[344704395,1733727074272,-5528.93,9.957e-05,2]
[344704396,1733727074281,-1809.27,9.957e-05,2]
[344704397,1733727074291,-724.73,9.957e-05,2]
[344704398,1733727074301,-775.72,9.957e-05,2]
[344704399,1733727074311,-567.55,9.957e-05,2]
[344704400,1733727074321,-500.58,9.957e-05,2]
[344704401,1733727074331,-500.0,9.957e-05,2]
[344704402,1733727074340,-643.8,9.957e-05,2]
[344704403,1733727074350,-576.49,9.957e-05,2]
[344704404,1733727074360,-1271.95,9.957e-05,2]
[344704405,1733727074370,-500.0,9.957e-05,2]
[344704406,1733727074380,-635.28,9.957e-05,2]
[344704407,1733727074390,-818.95,9.957e-05,2]
[344704408,1733727074400,-1557.71,9.957e-05,2]
[344704409,1733727074410,-500.0,9.957e-05,2]
[344704410,1733727074421,-1481.03,9.957e-05,2]
[344704411,1733727074431,-500.0,9.957e-05,2]
[344704412,1733727074442,-4920.36,9.957e-05,2]
[344704413,1733727074453,-500.0,9.957e-05,2]
[344704414,1733727074463,-500.0,9.957e-05,2]
[344704415,1733727074473,-500.0,9.957e-05,2]
[344704416,1733727074483,-8626.79,9.957e-05,2]
[344704417,1733727074493,-709.13,9.957e-05,2]
[344704418,1733727074503,-505.12,9.957e-05,2]
[344704419,1733727074513,-500.0,9.957e-05,2]
[344704420,1733727074527,-3870.05,9.957e-05,2]
[344704421,1733727074537,-615.74,9.957e-05,2]
[344704422,1733727074547,-500.0,9.957e-05,2]
[344704423,1733727074557,-1065.35,9.957e-05,2]
[344704424,1733727074567,-500.0,9.957e-05,2]
[344704425,1733727074577,-1635.93,9.957e-05,2]
[344704426,1733727074588,-665.23,9.957e-05,2]
[344704427,1733727074598,-2348.93,9.957e-05,2]
[344704428,1733727074607,-500.0,9.957e-05,2]
[344704429,1733727074617,-3039.13,9.957e-05,2]
[344704430,1733727074627,-2229.46,9.957e-05,2]
[344704431,1733727074637,-22344.12,9.957e-05,2]
[344704432,1733727074647,-500.0,9.957e-05,2]
[344704433,1733727074657,-3198.49,9.957e-05,2]
[344704434,1733727074667,-500.0,9.957e-05,2]
[344704435,1733727074676,-500.0,9.957e-05,2]
[344704436,1733727074686,-500.0,9.957e-05,2]
[344704437,1733727074696,-500.0,9.957e-05,2]
[344704438,1733727074706,-2021.5,9.957e-05,2]
[344704439,1733727074716,-14745.82,9.957e-05,2]
[344704440,1733727074725,-500.0,9.957e-05,2]
[344704441,1733727074735,-500.0,9.957e-05,2]
[344704442,1733727074746,-9054.83,9.957e-05,2]
[344704443,1733727074755,-1343.94,9.957e-05,2]
[344704444,1733727074767,-583.72,9.957e-05,2]
[344704445,1733727074776,-227.66639985,9.958e-05,2]
[344704446,1733727074786,-201.16307651,9.958e-05,2]
[344704447,1733727074795,-409.48913758,9.958e-05,2]
[344704448,1733727074805,-500.0,9.958e-05,2]
[344704449,1733727074815,-500.0,9.958e-05,2]
[344704450,1733727074825,-500.0,9.958e-05,2]
[344704451,1733727074835,-500.0,9.958e-05,2]
[344704452,1733727074846,-500.0,9.958e-05,2]
[344704453,1733727074858,-500.0,9.958e-05,2]
[344704454,1733727074869,-556.22,9.958e-05,2]
[344704455,1733727074879,-556.22,9.958e-05,2]
[344704456,1733727074890,-500.0,9.958e-05,2]
[344704457,1733727074900,-500.0,9.958e-05,2]
[344704458,1733727074910,-588.12,9.958e-05,2]
[344704459,1733727074920,-588.12,9.958e-05,2]
[344704460,1733727074930,-614.72,9.958e-05,2]
[344704461,1733727074940,-614.72,9.958e-05,2]
[344704462,1733727074950,-845.06,9.958e-05,2]
[344704463,1733727074960,-845.06,9.958e-05,2]
[344704464,1733727074969,-701.97,9.958e-05,2]
[344704465,1733727074978,-701.97,9.958e-05,2]
[344704466,1733727074987,-1014.68,9.958e-05,2]
[344704467,1733727074997,-1014.68,9.958e-05,2]
[344704468,1733727075007,-700.42,9.958e-05,2]
[344704469,1733727075018,-700.42,9.958e-05,2]
[344704470,1733727075027,-500.0,9.958e-05,2]
[344704471,1733727075037,-500.0,9.958e-05,2]
[344704472,1733727075047,-500.0,9.958e-05,2]
[344704473,1733727075056,-500.0,9.958e-05,2]
[344704474,1733727075066,-1542.93,9.958e-05,2]
[344704475,1733727075075,-1542.93,9.958e-05,2]
[344704476,1733727075084,-500.0,9.958e-05,2]
[344704477,1733727075094,-500.0,9.958e-05,2]
[344704478,1733727075104,-500.0,9.958e-05,2]
[344704479,1733727075176,-500.0,9.958e-05,2]
[344704480,1733727075186,-985.5,9.958e-05,2]
[344704481,1733727075195,-985.5,9.958e-05,2]
[344704482,1733727075203,-500.0,9.958e-05,2]
[344704483,1733727075214,-500.0,9.958e-05,2]
[344704484,1733727075223,-654.83,9.958e-05,2]
[344704485,1733727075232,-654.83,9.958e-05,2]
[344704486,1733727075241,-500.0,9.958e-05,2]
[344704487,1733727075250,-500.0,9.958e-05,2]
[344704488,1733727075259,-500.0,9.958e-05,2]
[344704489,1733727075271,-500.0,9.958e-05,2]
[344704490,1733727075280,-212.04,9.958e-05,2]
[344704491,1733727075289,-500.0,9.958e-05,2]
[344704492,1733727075298,-541.77395964,9.958e-05,2]
[344704493,1733727075307,-931.86,9.958e-05,2]
[344704494,1733727075317,-931.86,9.958e-05,2]
[344704495,1733727075326,-500.0,9.958e-05,2]
[344704496,1733727075334,-424.05129629,9.958e-05,2]
[344704497,1733727075343,-576.23,9.958e-05,2]
[344704498,1733727075352,-576.23,9.958e-05,2]
[344704499,1733727075362,-747.24,9.958e-05,2]
[344704500,1733727075371,-747.24,9.958e-05,2]
[344704501,1733727075381,-566.08,9.958e-05,2]
[344704502,1733727075390,-566.08,9.958e-05,2]
[344704503,1733727075399,-607.67,9.958e-05,2]
[344704504,1733727075408,-607.67,9.958e-05,2]
[344704505,1733727075416,-938.32,9.958e-05,2]
[344704506,1733727075425,-938.32,9.958e-05,2]
[344704507,1733727075434,-1670.14,9.958e-05,2]
[344704508,1733727075443,-2421.76,9.958e-05,2]
[344704509,1733727075452,-514.47,9.958e-05,2]
[344704510,1733727075462,-514.47,9.958e-05,2]
[344704511,1733727075471,-668.19,9.958e-05,2]
[344704512,1733727075480,-668.19,9.958e-05,2]
[344704513,1733727075488,-376.39751881,9.958e-05,2]
[344704514,1733727075498,-500.0,9.958e-05,2]
[344704515,1733727075507,-363.5,9.958e-05,2]
[344704516,1733727075516,-500.0,9.958e-05,2]
[344704517,1733727075525,-5206.07,9.958e-05,2]
[344704518,1733727075535,-615.53,9.958e-05,2]
[344704519,1733727075544,-500.0,9.958e-05,2]
[344704520,1733727075552,-726.47,9.958e-05,2]
[344704521,1733727075562,-726.47,9.958e-05,2]
[344704522,1733727075572,-3902.42,9.958e-05,2]
[344704523,1733727075581,-545.73,9.958e-05,2]
[344704524,1733727075590,-545.73,9.958e-05,2]
[344704525,1733727075598,-500.0,9.958e-05,2]
[344704526,1733727075607,-500.0,9.959e-05,2]
[344704527,1733727075616,-500.0,9.959e-05,2]
[344704528,1733727075625,-500.0,9.959e-05,2]
[344704529,1733727075633,-500.0,9.959e-05,2]
[344704530,1733727075643,-500.0,9.959e-05,2]
[344704531,1733727075651,-772.19,9.959e-05,2]
[344704532,1733727075660,-500.0,9.959e-05,2]
[344704533,1733727075670,-500.0,9.959e-05,2]
[344704534,1733727075678,-500.0,9.959e-05,2]
[344704535,1733727075687,-439.17,9.959e-05,2]
[344704536,1733727075696,-500.0,9.959e-05,2]
[344704537,1733727075705,-500.0,9.959e-05,2]
[344704538,1733727075714,-500.0,9.959e-05,2]
[344704539,1733727075723,-500.0,9.959e-05,2]
[344704540,1733727075732,-500.0,9.959e-05,2]
[344704541,1733727075741,-500.0,9.959e-05,2]
[344704542,1733727075750,-1615.85,9.959e-05,2]
[344704543,1733727075758,-500.0,9.959e-05,2]
[344704544,1733727075768,-627.44,9.959e-05,2]
[344704545,1733727075777,-500.0,9.959e-05,2]
[344704546,1733727075786,-329.42,9.959e-05,2]
[344704547,1733727075795,-500.4,9.959e-05,2]
[344704548,1733727075804,-500.0,9.959e-05,2]
[344704549,1733727075813,-579.47,9.959e-05,2]
[344704550,1733727075822,-7764.25,9.959e-05,2]
[344704551,1733727075831,-1320.76,9.959e-05,2]
[344704552,1733727075840,-980.21,9.959e-05,2]
[344704553,1733727075855,-1680.89,9.959e-05,2]
[344704554,1733727075864,-2748.0,9.959e-05,2]
[344704555,1733727075874,-596.93,9.959e-05,2]
[344704556,1733727075883,-670.49,9.959e-05,2]
[344704557,1733727075892,-1327.67,9.959e-05,2]
[344704558,1733727075901,-500.0,9.959e-05,2]
[344704559,1733727075910,-963.86,9.959e-05,2]
[344704560,1733727075919,-799.04,9.959e-05,2]
[344704561,1733727075928,-500.0,9.959e-05,2]
[344704562,1733727075938,-708.62,9.959e-05,2]
[344704563,1733727075947,-500.0,9.959e-05,2]
[344704564,1733727075956,-500.0,9.959e-05,2]
[344704565,1733727075965,-500.0,9.959e-05,2]
[344704566,1733727075974,-1074.36,9.959e-05,2]
[344704567,1733727075984,-500.0,9.959e-05,2]
[344704568,1733727075993,-500.0,9.959e-05,2]
[344704569,1733727076002,-1083.33,9.959e-05,2]
[344704570,1733727076011,-726.78,9.959e-05,2]
[344704571,1733727076022,-506.09,9.959e-05,2]
[344704572,1733727076032,-500.0,9.959e-05,2]
[344704573,1733727076041,-500.0,9.959e-05,2]
[344704574,1733727076050,-500.0,9.959e-05,2]
[344704575,1733727076059,-500.0,9.959e-05,2]
[344704576,1733727076068,-5528.93,9.959e-05,2]
[344704577,1733727076077,-1809.27,9.959e-05,2]
[344704578,1733727076086,-724.73,9.959e-05,2]
[344704579,1733727076095,-567.55,9.959e-05,2]
[344704580,1733727076104,-500.58,9.959e-05,2]
[344704581,1733727076113,-576.49,9.959e-05,2]
[344704582,1733727076123,-500.0,9.959e-05,2]
[344704583,1733727076132,-635.28,9.959e-05,2]
[344704584,1733727076141,-818.95,9.959e-05,2]
[344704585,1733727076149,-1557.71,9.959e-05,2]
[344704586,1733727076158,-500.0,9.959e-05,2]
[344704587,1733727076167,-500.0,9.959e-05,2]
[344704588,1733727076176,-4920.36,9.959e-05,2]
[344704589,1733727076185,-612.61452295,9.959e-05,2]
[344704590,1733727076194,-500.0,9.959e-05,2]
[344704591,1733727076203,-8626.79,9.959e-05,2]
[344704592,1733727076212,-505.12,9.959e-05,2]
[344704593,1733727076221,-3870.05,9.959e-05,2]
[344704594,1733727076230,-615.74,9.959e-05,2]
[344704595,1733727076239,-1065.35,9.959e-05,2]
[344704596,1733727076248,-500.0,9.959e-05,2]
[344704597,1733727076257,-1635.93,9.959e-05,2]
[344704598,1733727076267,-2348.93,9.959e-05,2]
[344704599,1733727076276,-500.0,9.959e-05,2]
[344704600,1733727076285,-3039.13,9.959e-05,2]
[344704601,1733727076295,-22344.12,9.959e-05,2]
[344704602,1733727076304,-500.0,9.959e-05,2]
[344704603,1733727076314,-3198.49,9.959e-05,2]
[344704604,1733727076323,-500.0,9.959e-05,2]
[344704605,1733727076332,-500.0,9.959e-05,2]
[344704606,1733727076342,-500.0,9.959e-05,2]
[344704607,1733727076351,-500.0,9.959e-05,2]
[344704608,1733727076360,-2021.5,9.959e-05,2]
[344704609,1733727076370,-14745.82,9.959e-05,2]
[344704610,1733727076379,-463.08,9.959e-05,2]
[344704611,1733727076388,-500.0,9.959e-05,2]
[344704612,1733727076398,-9054.83,9.959e-05,2]
[344704613,1733727076407,-1343.94,9.959e-05,2]